[Event "Late-Titled-Tuesday-Blitz-November-28-2023"]
[Site "Chess.com"]
[Date "2023.11.28"]
[Round "2"]
[White "TheCavemanChess"]
[Black "Sacbutt"]
[Result "1-0"]
[WhiteElo "2713"]
[BlackElo "2353"]
[TimeControl "180+1"]
[EndTime "14:14:07 PST"]
[Termination "TheCavemanChess won by resignation"]

1. e4 {[%clk 0:03:00.9]} 1... c5 {[%clk 0:02:59.5]} 2. Ne2 {[%clk 0:02:59.5]}
2... d6 {[%clk 0:02:58.8]} 3. Nbc3 {[%clk 0:02:59.9]} 3... Nf6 {[%clk
0:02:57.6]} 4. d4 {[%clk 0:03:00.3]} 4... cxd4 {[%clk 0:02:57.8]} 5. Nxd4 {[%clk
0:03:01.2]} 5... a6 {[%clk 0:02:58.2]} 6. Bg5 {[%clk 0:03:01.4]} 6... e6 {[%clk
0:02:58.3]} 7. f4 {[%clk 0:03:02]} 7... Be7 {[%clk 0:02:58.7]} 8. Qf3 {[%clk
0:03:02]} 8... Qc7 {[%clk 0:02:58.8]} 9. O-O-O {[%clk 0:03:00.6]} 9... Nbd7
{[%clk 0:02:59]} 10. Bd3 {[%clk 0:02:59.7]} 10... b5 {[%clk 0:02:57.4]} 11. Rhe1
{[%clk 0:03:00]} 11... b4 {[%clk 0:02:54.8]} 12. Nd5 {[%clk 0:02:59.3]} 12...
Nxd5 {[%clk 0:02:40.9]} 13. exd5 {[%clk 0:03:00.2]} 13... Bxg5 {[%clk
0:02:13.9]} 14. dxe6 {[%clk 0:02:59.1]} 14... Bxf4+ {[%clk 0:02:00]} 15. Kb1
{[%clk 0:02:40.3]} 15... Ne5 {[%clk 0:01:57.6]} 16. Qxa8 {[%clk 0:02:33.5]}
16... O-O {[%clk 0:01:56.4]} 17. exf7+ {[%clk 0:02:29.7]} 17... Qxf7 {[%clk
0:01:53.5]} 18. Qe4 {[%clk 0:02:28.8]} 18... g6 {[%clk 0:01:46.5]} 19. Rf1
{[%clk 0:02:26.2]} 19... d5 {[%clk 0:01:30.5]} 20. Qe1 {[%clk 0:02:23]} 20...
Nxd3 {[%clk 0:01:25.2]} 21. Rxd3 {[%clk 0:02:22.7]} 21... Qc7 {[%clk 0:01:03.4]}
22. Qxb4 {[%clk 0:02:10.7]} 22... a5 {[%clk 0:00:53.6]} 23. Qe1 {[%clk
0:02:03.5]} 23... Bxh2 {[%clk 0:00:40.9]} 24. Rxf8+ {[%clk 0:02:00.6]} 24...
Kxf8 {[%clk 0:00:41.8]} 25. Ne6+ {[%clk 0:02:01.1]} 25... Bxe6 {[%clk
0:00:41.9]} 26. Qxe6 {[%clk 0:02:02]} 1-0

[Event "Late-Titled-Tuesday-Blitz-November-28-2023"]
[Site "Chess.com"]
[Date "2023.11.28"]
[Round "2"]
[White "WilliamAlfaroCaracas"]
[Black "FuenfgegenWilly"]
[Result "0-1"]
[WhiteElo "2222"]
[BlackElo "2470"]
[TimeControl "180+1"]
[EndTime "14:14:20 PST"]
[Termination "FuenfgegenWilly won on time"]

1. e4 {[%clk 0:02:58.1]} 1... e5 {[%clk 0:02:36.5]} 2. Nf3 {[%clk 0:02:57]} 2...
Nc6 {[%clk 0:02:30.3]} 3. Bc4 {[%clk 0:02:56.1]} 3... Nf6 {[%clk 0:02:30.2]} 4.
Ng5 {[%clk 0:02:51.9]} 4... d5 {[%clk 0:02:30.3]} 5. exd5 {[%clk 0:02:52.1]}
5... b5 {[%clk 0:02:30.7]} 6. Bf1 {[%clk 0:02:49.8]} 6... h6 {[%clk 0:02:30.5]}
7. Nxf7 {[%clk 0:02:32]} 7... Kxf7 {[%clk 0:02:31.4]} 8. dxc6 {[%clk 0:02:29.9]}
8... Bc5 {[%clk 0:02:32.3]} 9. Bxb5 {[%clk 0:01:43.1]} 9... Rf8 {[%clk
0:02:24.6]} 10. Bc4+ {[%clk 0:01:40.5]} 10... Kg6 {[%clk 0:02:24.2]} 11. O-O
{[%clk 0:01:32.5]} 11... Ng4 {[%clk 0:02:18.2]} 12. d4 {[%clk 0:01:22.1]} 12...
Bxd4 {[%clk 0:02:15.9]} 13. Bd3+ {[%clk 0:00:51.1]} 13... Kf7 {[%clk 0:02:15.8]}
14. Bc4+ {[%clk 0:00:48.3]} 14... Ke8 {[%clk 0:02:10.1]} 15. Nc3 {[%clk
0:00:14.4]} 15... Qh4 {[%clk 0:02:06]} 16. h3 {[%clk 0:00:03.7]} 16... Rxf2
{[%clk 0:02:05.6]} 17. Rxf2 {[%clk 0:00:02.3]} 17... Qxf2+ {[%clk 0:02:02.3]}
18. Kh1 {[%clk 0:00:01.8]} 18... Qg3 {[%clk 0:02:02.4]} 0-1

[Event "Late-Titled-Tuesday-Blitz-November-28-2023"]
[Site "Chess.com"]
[Date "2023.11.28"]
[Round "2"]
[White "SHIVACalypso"]
[Black "seasidesunset"]
[Result "0-1"]
[WhiteElo "2432"]
[BlackElo "2220"]
[TimeControl "180+1"]
[EndTime "14:14:21 PST"]
[Termination "seasidesunset won by checkmate"]

1. e4 {[%clk 0:03:00.9]} 1... c5 {[%clk 0:02:59.7]} 2. Nc3 {[%clk 0:02:57.2]}
2... a6 {[%clk 0:02:58.2]} 3. Nf3 {[%clk 0:02:52.7]} 3... Nf6 {[%clk 0:02:55.8]}
4. d4 {[%clk 0:02:52.3]} 4... cxd4 {[%clk 0:02:56.4]} 5. Nxd4 {[%clk 0:02:53]}
5... d6 {[%clk 0:02:56.2]} 6. h3 {[%clk 0:02:49.4]} 6... e5 {[%clk 0:02:53.9]}
7. Nf3 {[%clk 0:02:43.9]} 7... Be7 {[%clk 0:02:48.5]} 8. Bc4 {[%clk 0:02:39.6]}
8... Be6 {[%clk 0:02:48.6]} 9. Bxe6 {[%clk 0:02:39.3]} 9... fxe6 {[%clk
0:02:49.5]} 10. Be3 {[%clk 0:02:37.5]} 10... Qd7 {[%clk 0:02:42.3]} 11. Qd2
{[%clk 0:02:37.8]} 11... Nc6 {[%clk 0:02:40.1]} 12. O-O-O {[%clk 0:02:36.5]}
12... O-O {[%clk 0:02:40.2]} 13. Ne1 {[%clk 0:02:28.8]} 13... b5 {[%clk
0:02:39.9]} 14. f4 {[%clk 0:02:24.3]} 14... b4 {[%clk 0:02:36.2]} 15. Na4 {[%clk
0:02:23.9]} 15... Rab8 {[%clk 0:02:18.5]} 16. Nb6 {[%clk 0:02:19.8]} 16... Qc7
{[%clk 0:02:12]} 17. fxe5 {[%clk 0:02:20.1]} 17... Nxe5 {[%clk 0:02:09.9]} 18.
Qxb4 {[%clk 0:02:14.3]} 18... Nfd7 {[%clk 0:01:40.7]} 19. Qa5 {[%clk 0:01:47.1]}
19... Nxb6 {[%clk 0:01:36.4]} 20. Nd3 {[%clk 0:01:47.8]} 20... Nec4 {[%clk
0:01:31.9]} 21. Bxb6 {[%clk 0:01:44.6]} 21... Qxb6 {[%clk 0:01:27.2]} 22. Qxb6
{[%clk 0:01:44.6]} 22... Rxb6 {[%clk 0:01:24.9]} 23. b3 {[%clk 0:01:45.3]} 23...
Bg5+ {[%clk 0:01:21.1]} 24. Kb1 {[%clk 0:01:44.1]} 24... Bf6 {[%clk 0:01:17.6]}
25. a4 {[%clk 0:01:29]} 25... Rc8 {[%clk 0:01:15]} 26. Ka2 {[%clk 0:01:24.7]}
26... Ne3 {[%clk 0:01:13.7]} 27. Rd2 {[%clk 0:01:25.1]} 27... Nxc2 {[%clk
0:01:09.4]} 28. Rc1 {[%clk 0:01:25.6]} 28... Nb4+ {[%clk 0:01:09.8]} 29. Nxb4
{[%clk 0:01:26.2]} 29... Rxc1 {[%clk 0:01:10.2]} 30. Nc2 {[%clk 0:01:24.5]}
30... Rc6 {[%clk 0:01:09.4]} 31. Ne3 {[%clk 0:01:24.6]} 31... Ra1# {[%clk
0:01:09.6]} 0-1

[Event "Late-Titled-Tuesday-Blitz-November-28-2023"]
[Site "Chess.com"]
[Date "2023.11.28"]
[Round "2"]
[White "DawnofEpiphany"]
[Black "MajorCoast"]
[Result "1-0"]
[WhiteElo "2650"]
[BlackElo "2229"]
[TimeControl "180+1"]
[EndTime "14:14:26 PST"]
[Termination "DawnofEpiphany won by checkmate"]

1. d4 {[%clk 0:03:00.9]} 1... d5 {[%clk 0:02:57.9]} 2. c4 {[%clk 0:02:59]} 2...
e6 {[%clk 0:02:58.1]} 3. Nf3 {[%clk 0:02:58.8]} 3... Nf6 {[%clk 0:02:57.6]} 4.
g3 {[%clk 0:02:58.9]} 4... Bb4+ {[%clk 0:02:54.6]} 5. Bd2 {[%clk 0:02:58.4]}
5... Be7 {[%clk 0:02:54.6]} 6. Bg2 {[%clk 0:02:58.2]} 6... O-O {[%clk
0:02:55.3]} 7. O-O {[%clk 0:02:57.4]} 7... Nbd7 {[%clk 0:02:56]} 8. Qc2 {[%clk
0:02:50]} 8... Ne4 {[%clk 0:02:55.8]} 9. Bf4 {[%clk 0:02:29.4]} 9... c6 {[%clk
0:02:55.8]} 10. Rd1 {[%clk 0:02:14.3]} 10... g5 {[%clk 0:02:54]} 11. Bc1 {[%clk
0:02:14.1]} 11... f5 {[%clk 0:02:53.8]} 12. b3 {[%clk 0:02:14]} 12... b6 {[%clk
0:02:50.7]} 13. Bb2 {[%clk 0:02:12.2]} 13... Ba6 {[%clk 0:02:43.9]} 14. a4
{[%clk 0:02:09.1]} 14... Ndf6 {[%clk 0:02:43.4]} 15. Ne5 {[%clk 0:02:07.8]}
15... Rc8 {[%clk 0:02:34]} 16. a5 {[%clk 0:02:07.1]} 16... b5 {[%clk 0:02:25.6]}
17. c5 {[%clk 0:02:05.6]} 17... g4 {[%clk 0:02:20.5]} 18. e3 {[%clk 0:01:51.4]}
18... h5 {[%clk 0:02:19.4]} 19. Qe2 {[%clk 0:01:50.3]} 19... Kg7 {[%clk
0:02:11.4]} 20. Na3 {[%clk 0:01:47.2]} 20... Rh8 {[%clk 0:02:09.8]} 21. Nc2
{[%clk 0:01:47]} 21... h4 {[%clk 0:02:00.7]} 22. Nb4 {[%clk 0:01:46.9]} 22...
Bb7 {[%clk 0:02:00.9]} 23. a6 {[%clk 0:01:46.8]} 23... Ba8 {[%clk 0:02:01.2]}
24. Rdc1 {[%clk 0:01:41.5]} 24... Qe8 {[%clk 0:01:55.6]} 25. Nbd3 {[%clk
0:01:39.6]} 25... hxg3 {[%clk 0:01:52.6]} 26. hxg3 {[%clk 0:01:37.9]} 26... Qh5
{[%clk 0:01:52.3]} 27. Nf4 {[%clk 0:01:38.1]} 27... Qh2+ {[%clk 0:01:48.1]} 28.
Kf1 {[%clk 0:01:38.7]} 28... Nh5 {[%clk 0:01:31.3]} 29. Bxe4 {[%clk 0:01:29.5]}
29... fxe4 {[%clk 0:01:22.5]} 30. Qxg4+ {[%clk 0:01:25.9]} 30... Kf8 {[%clk
0:01:14.4]} 31. Nxe6+ {[%clk 0:01:21.7]} 31... Ke8 {[%clk 0:01:10.5]} 32. Qg6#
{[%clk 0:01:21.7]} 1-0

[Event "Late-Titled-Tuesday-Blitz-November-28-2023"]
[Site "Chess.com"]
[Date "2023.11.28"]
[Round "2"]
[White "TRadjabov"]
[Black "karinachess1"]
[Result "1-0"]
[WhiteElo "3006"]
[BlackElo "2597"]
[TimeControl "180+1"]
[EndTime "14:14:31 PST"]
[Termination "TRadjabov won by checkmate"]

1. Nf3 {[%clk 0:02:29.7]} 1... Nf6 {[%clk 0:02:59.5]} 2. b3 {[%clk 0:02:30]}
2... g6 {[%clk 0:02:59.2]} 3. Bb2 {[%clk 0:02:30.3]} 3... Bg7 {[%clk 0:02:59.9]}
4. g3 {[%clk 0:02:30.6]} 4... O-O {[%clk 0:03:00.3]} 5. c4 {[%clk 0:02:30.8]}
5... d6 {[%clk 0:03:00.1]} 6. Bg2 {[%clk 0:02:30.9]} 6... c5 {[%clk 0:02:59.5]}
7. O-O {[%clk 0:02:30.7]} 7... e5 {[%clk 0:02:59.2]} 8. d3 {[%clk 0:02:30.9]}
8... Nc6 {[%clk 0:02:58.8]} 9. Nc3 {[%clk 0:02:31.2]} 9... h6 {[%clk 0:02:56.5]}
10. a3 {[%clk 0:02:30.6]} 10... a5 {[%clk 0:02:52.5]} 11. Nd2 {[%clk 0:02:29.7]}
11... Be6 {[%clk 0:02:51.7]} 12. Nd5 {[%clk 0:02:29.4]} 12... Bxd5 {[%clk
0:02:38.5]} 13. cxd5 {[%clk 0:02:29.4]} 13... Ne7 {[%clk 0:02:34.6]} 14. e4
{[%clk 0:02:29.5]} 14... Ne8 {[%clk 0:02:27.6]} 15. a4 {[%clk 0:02:27.9]} 15...
f5 {[%clk 0:01:30.9]} 16. Nc4 {[%clk 0:02:27.8]} 16... f4 {[%clk 0:01:21]} 17.
Bh3 {[%clk 0:02:27.1]} 17... Kh7 {[%clk 0:01:20]} 18. Bc3 {[%clk 0:02:27]} 18...
b6 {[%clk 0:01:09.1]} 19. Ra2 {[%clk 0:02:24.5]} 19... Nf6 {[%clk 0:01:03.4]}
20. Be6 {[%clk 0:02:21]} 20... g5 {[%clk 0:00:54.9]} 21. f3 {[%clk 0:02:21.2]}
21... h5 {[%clk 0:00:48]} 22. Rg2 {[%clk 0:02:20.1]} 22... Bh6 {[%clk 0:00:41]}
23. Kh1 {[%clk 0:02:20.3]} 23... Rb8 {[%clk 0:00:39.1]} 24. gxf4 {[%clk
0:02:18.9]} 24... gxf4 {[%clk 0:00:31]} 25. Rfg1 {[%clk 0:02:19.1]} 25... Ne8
{[%clk 0:00:25.5]} 26. Qe1 {[%clk 0:02:12.7]} 26... Ng7 {[%clk 0:00:20.2]} 27.
Qh4 {[%clk 0:02:10.7]} 27... Ng8 {[%clk 0:00:19]} 28. Rxg7+ {[%clk 0:02:01.5]}
28... Bxg7 {[%clk 0:00:19]} 29. Qxh5+ {[%clk 0:02:02]} 29... Nh6 {[%clk
0:00:19.6]} 30. Qg6+ {[%clk 0:02:02.3]} 30... Kh8 {[%clk 0:00:19.5]} 31. Qxg7#
{[%clk 0:02:02.7]} 1-0

[Event "Late-Titled-Tuesday-Blitz-November-28-2023"]
[Site "Chess.com"]
[Date "2023.11.28"]
[Round "2"]
[White "PapaieDudu"]
[Black "dorpato"]
[Result "1-0"]
[WhiteElo "2412"]
[BlackElo "2086"]
[TimeControl "180+1"]
[EndTime "14:14:34 PST"]
[Termination "PapaieDudu won by resignation"]

1. d4 {[%clk 0:02:53.4]} 1... Nf6 {[%clk 0:02:58.7]} 2. c4 {[%clk 0:02:53.9]}
2... g6 {[%clk 0:02:57.6]} 3. Nc3 {[%clk 0:02:54.4]} 3... d5 {[%clk 0:02:51.5]}
4. Nf3 {[%clk 0:02:53.7]} 4... Bg7 {[%clk 0:02:50.1]} 5. e3 {[%clk 0:02:54.1]}
5... O-O {[%clk 0:02:44.9]} 6. Bd3 {[%clk 0:02:53.2]} 6... c6 {[%clk 0:02:42]}
7. O-O {[%clk 0:02:53.7]} 7... dxc4 {[%clk 0:02:41.1]} 8. Bxc4 {[%clk
0:02:54.1]} 8... b5 {[%clk 0:02:41.7]} 9. Bb3 {[%clk 0:02:54.4]} 9... Bb7 {[%clk
0:02:42]} 10. Qe2 {[%clk 0:02:54.7]} 10... Nbd7 {[%clk 0:02:41.5]} 11. Rd1
{[%clk 0:02:55.3]} 11... Qc7 {[%clk 0:02:40.5]} 12. e4 {[%clk 0:02:55.5]} 12...
e5 {[%clk 0:02:40.2]} 13. dxe5 {[%clk 0:02:54.9]} 13... Nxe5 {[%clk 0:02:41.1]}
14. Nxe5 {[%clk 0:02:55.7]} 14... Qxe5 {[%clk 0:02:41]} 15. f4 {[%clk
0:02:56.4]} 15... Qe7 {[%clk 0:02:30.5]} 16. e5 {[%clk 0:02:54.7]} 16... Nd7
{[%clk 0:02:24.8]} 17. Be3 {[%clk 0:02:53.6]} 17... a6 {[%clk 0:02:11]} 18. a3
{[%clk 0:02:53.7]} 18... c5 {[%clk 0:02:10.9]} 19. Nd5 {[%clk 0:02:53.2]} 19...
Bxd5 {[%clk 0:02:02.7]} 20. Bxd5 {[%clk 0:02:53.1]} 20... Rab8 {[%clk
0:02:00.2]} 21. Qf3 {[%clk 0:02:52.5]} 21... Nb6 {[%clk 0:01:47]} 22. Bc6 {[%clk
0:02:52.3]} 22... Nc4 {[%clk 0:01:44.5]} 23. Rd7 {[%clk 0:02:49.7]} 23... Qe6
{[%clk 0:01:39.7]} 24. Bxc5 {[%clk 0:02:49.5]} 24... Rfc8 {[%clk 0:01:29.3]} 25.
Rad1 {[%clk 0:02:10]} 25... Qxc6 {[%clk 0:00:25.2]} 26. Rd8+ {[%clk 0:02:05.5]}
26... Rxd8 {[%clk 0:00:18.1]} 27. Rxd8+ {[%clk 0:02:04.7]} 27... Rxd8 {[%clk
0:00:18.4]} 28. Qxc6 {[%clk 0:02:05.4]} 28... Rd1+ {[%clk 0:00:17.9]} 29. Kf2
{[%clk 0:02:06]} 29... Rd2+ {[%clk 0:00:17.5]} 30. Ke1 {[%clk 0:02:06.3]} 30...
Bh6 {[%clk 0:00:16.1]} 31. Qe8+ {[%clk 0:02:05.9]} 1-0

[Event "Late-Titled-Tuesday-Blitz-November-28-2023"]
[Site "Chess.com"]
[Date "2023.11.28"]
[Round "2"]
[White "The_Straightforward_Rook"]
[Black "GAO"]
[Result "0-1"]
[WhiteElo "2459"]
[BlackElo "2261"]
[TimeControl "180+1"]
[EndTime "14:14:36 PST"]
[Termination "GAO won by resignation"]

1. e4 {[%clk 0:03:00.9]} 1... c5 {[%clk 0:03:00.1]} 2. c3 {[%clk 0:03:00.7]}
2... Nf6 {[%clk 0:02:57.4]} 3. e5 {[%clk 0:03:00.8]} 3... Nd5 {[%clk 0:02:57.7]}
4. Nf3 {[%clk 0:03:01.3]} 4... d6 {[%clk 0:02:57.7]} 5. Bc4 {[%clk 0:02:59.6]}
5... Nb6 {[%clk 0:02:57.4]} 6. Bb3 {[%clk 0:03:00.2]} 6... Nc6 {[%clk
0:02:52.8]} 7. exd6 {[%clk 0:02:56.4]} 7... Qxd6 {[%clk 0:02:50.8]} 8. Na3
{[%clk 0:02:55.2]} 8... Bf5 {[%clk 0:02:49.5]} 9. O-O {[%clk 0:02:48.3]} 9... e6
{[%clk 0:02:49]} 10. d4 {[%clk 0:02:45.1]} 10... cxd4 {[%clk 0:02:45.1]} 11.
Nxd4 {[%clk 0:02:45.7]} 11... Nxd4 {[%clk 0:02:43.5]} 12. cxd4 {[%clk
0:02:46.6]} 12... Be7 {[%clk 0:02:42.3]} 13. Qf3 {[%clk 0:02:45.3]} 13... Qd7
{[%clk 0:02:31.5]} 14. h4 {[%clk 0:02:44.4]} 14... O-O {[%clk 0:02:29.4]} 15. g4
{[%clk 0:02:42.7]} 15... Bxa3 {[%clk 0:02:14.2]} 16. bxa3 {[%clk 0:02:40.1]}
16... Qxd4 {[%clk 0:02:14.1]} 17. gxf5 {[%clk 0:02:39.5]} 17... Qxa1 {[%clk
0:02:09.7]} 18. Bg5 {[%clk 0:02:21.9]} 18... Qe5 {[%clk 0:01:53.9]} 19. f6
{[%clk 0:02:19.9]} 19... Qf5 {[%clk 0:01:51.5]} 20. Qg2 {[%clk 0:02:10.5]} 20...
Nd5 {[%clk 0:01:31.6]} 21. fxg7 {[%clk 0:02:05.6]} 21... Rfc8 {[%clk 0:01:26.2]}
22. Rd1 {[%clk 0:01:55.7]} 22... Nf4 {[%clk 0:01:25]} 23. Bxf4 {[%clk
0:01:47.7]} 23... Qxf4 {[%clk 0:01:25.9]} 24. Qxb7 {[%clk 0:01:43.9]} 24... Qg4+
{[%clk 0:01:22.3]} 25. Kf1 {[%clk 0:01:34.2]} 25... Rab8 {[%clk 0:01:20.2]} 26.
Qxa7 {[%clk 0:01:28.6]} 26... Rxb3 {[%clk 0:01:17.6]} 27. Qd7 {[%clk 0:01:17.7]}
27... Rbc3 {[%clk 0:01:11]} 28. h5 {[%clk 0:01:15.6]} 28... Qxd1+ {[%clk
0:01:06.3]} 29. Qxd1 {[%clk 0:01:13.9]} 29... Rc1 {[%clk 0:01:07.2]} 0-1

[Event "Late-Titled-Tuesday-Blitz-November-28-2023"]
[Site "Chess.com"]
[Date "2023.11.28"]
[Round "2"]
[White "expii"]
[Black "The_Machine04"]
[Result "0-1"]
[WhiteElo "2241"]
[BlackElo "2653"]
[TimeControl "180+1"]
[EndTime "14:14:44 PST"]
[Termination "The_Machine04 won by resignation"]

1. e4 {[%clk 0:03:00.9]} 1... d6 {[%clk 0:02:59.9]} 2. d4 {[%clk 0:03:00.5]}
2... Nf6 {[%clk 0:02:59.9]} 3. Nc3 {[%clk 0:03:00.1]} 3... e5 {[%clk 0:03:00.1]}
4. dxe5 {[%clk 0:02:59.6]} 4... dxe5 {[%clk 0:02:59.5]} 5. Qxd8+ {[%clk
0:03:00.5]} 5... Kxd8 {[%clk 0:03:00.1]} 6. Nf3 {[%clk 0:03:01.1]} 6... Bd6
{[%clk 0:02:59.6]} 7. Bg5 {[%clk 0:03:01.5]} 7... Be6 {[%clk 0:02:59.7]} 8. Rd1
{[%clk 0:02:56.9]} 8... Nd7 {[%clk 0:02:59.6]} 9. Bxf6+ {[%clk 0:02:54.6]} 9...
gxf6 {[%clk 0:02:58.6]} 10. Nd5 {[%clk 0:02:51.6]} 10... f5 {[%clk 0:02:55.6]}
11. exf5 {[%clk 0:02:43.9]} 11... Bxf5 {[%clk 0:02:56.5]} 12. Bd3 {[%clk
0:02:34]} 12... e4 {[%clk 0:02:55.7]} 13. Nd4 {[%clk 0:02:34.2]} 13... Bg6
{[%clk 0:02:33.9]} 14. Be2 {[%clk 0:02:30.1]} 14... c6 {[%clk 0:02:30.9]} 15.
Ne3 {[%clk 0:02:29.3]} 15... Kc7 {[%clk 0:02:29.3]} 16. c3 {[%clk 0:02:27.7]}
16... Rad8 {[%clk 0:02:27.9]} 17. Bc4 {[%clk 0:02:24.2]} 17... Ne5 {[%clk
0:02:26.9]} 18. Be2 {[%clk 0:02:20.7]} 18... Bc5 {[%clk 0:02:21.4]} 19. O-O
{[%clk 0:02:12]} 19... Rd7 {[%clk 0:02:17.2]} 20. Nc4 {[%clk 0:02:08.7]} 20...
Nxc4 {[%clk 0:02:06.8]} 21. Bxc4 {[%clk 0:02:09.6]} 21... Rhd8 {[%clk
0:02:06.6]} 22. b3 {[%clk 0:01:54.3]} 22... Bxd4 {[%clk 0:01:58.9]} 23. Rxd4
{[%clk 0:01:53.6]} 23... Rxd4 {[%clk 0:01:59.8]} 24. cxd4 {[%clk 0:01:54.3]}
24... Rxd4 {[%clk 0:01:59.8]} 25. h4 {[%clk 0:01:49.4]} 25... Rd2 {[%clk
0:01:56.9]} 26. a4 {[%clk 0:01:47.5]} 26... a6 {[%clk 0:01:55.6]} 27. Rc1 {[%clk
0:01:40.5]} 27... Kd6 {[%clk 0:01:50.9]} 28. g4 {[%clk 0:01:37.2]} 28... b5
{[%clk 0:01:32.2]} 29. axb5 {[%clk 0:01:35.1]} 29... axb5 {[%clk 0:01:33.1]} 30.
Bf1 {[%clk 0:01:32.7]} 30... f5 {[%clk 0:01:24.5]} 31. h5 {[%clk 0:01:31.1]}
31... Bf7 {[%clk 0:01:24.4]} 32. gxf5 {[%clk 0:01:26.2]} 32... Bxb3 {[%clk
0:01:24.1]} 33. f6 {[%clk 0:01:23.7]} 33... Rd1 {[%clk 0:01:20.2]} 34. Rc3
{[%clk 0:01:18.6]} 34... Bc4 {[%clk 0:01:17.8]} 35. f7 {[%clk 0:01:17.5]} 35...
Ke7 {[%clk 0:01:13.7]} 36. Kg2 {[%clk 0:01:13]} 36... Bxf1+ {[%clk 0:01:13.1]}
0-1

[Event "Late-Titled-Tuesday-Blitz-November-28-2023"]
[Site "Chess.com"]
[Date "2023.11.28"]
[Round "2"]
[White "reevecanada"]
[Black "YellowJacek"]
[Result "1-0"]
[WhiteElo "2648"]
[BlackElo "2354"]
[TimeControl "180+1"]
[EndTime "14:14:47 PST"]
[Termination "reevecanada won by resignation"]

1. d4 {[%clk 0:02:56.1]} 1... Nf6 {[%clk 0:02:58.9]} 2. f4 {[%clk 0:02:55.2]}
2... d5 {[%clk 0:02:57.3]} 3. e3 {[%clk 0:02:54.7]} 3... g6 {[%clk 0:02:57.5]}
4. Nf3 {[%clk 0:02:54.1]} 4... Bg7 {[%clk 0:02:58]} 5. Bd3 {[%clk 0:02:54]} 5...
c5 {[%clk 0:02:58.4]} 6. c3 {[%clk 0:02:53.2]} 6... Nc6 {[%clk 0:02:59]} 7. Nbd2
{[%clk 0:02:53.2]} 7... Qc7 {[%clk 0:02:58.9]} 8. O-O {[%clk 0:02:53.4]} 8...
cxd4 {[%clk 0:02:58.1]} 9. cxd4 {[%clk 0:02:49.5]} 9... O-O {[%clk 0:02:54.8]}
10. a3 {[%clk 0:02:48.3]} 10... b6 {[%clk 0:02:43.3]} 11. b3 {[%clk 0:02:46]}
11... Bb7 {[%clk 0:02:41.3]} 12. Bb2 {[%clk 0:02:44]} 12... Rac8 {[%clk
0:02:36.4]} 13. Rc1 {[%clk 0:02:43.3]} 13... Qb8 {[%clk 0:02:36.7]} 14. Ne5
{[%clk 0:02:42.3]} 14... Nxe5 {[%clk 0:02:17.6]} 15. fxe5 {[%clk 0:02:40.4]}
15... Ne4 {[%clk 0:02:18.5]} 16. Nxe4 {[%clk 0:02:38.6]} 16... dxe4 {[%clk
0:02:18.4]} 17. Bc4 {[%clk 0:02:38.8]} 17... e6 {[%clk 0:02:12.6]} 18. Qg4
{[%clk 0:02:37.1]} 18... b5 {[%clk 0:01:54.1]} 19. Bxb5 {[%clk 0:02:15.5]} 19...
Bd5 {[%clk 0:01:52.5]} 20. a4 {[%clk 0:02:15.5]} 20... a6 {[%clk 0:01:45.4]} 21.
Rxc8 {[%clk 0:01:59.4]} 21... Qxc8 {[%clk 0:01:44.6]} 22. Be2 {[%clk 0:01:44.4]}
22... Qc2 {[%clk 0:01:36.2]} 23. Ba3 {[%clk 0:01:43.2]} 23... h5 {[%clk
0:01:17.7]} 24. Qf4 {[%clk 0:01:41.7]} 24... f5 {[%clk 0:00:54]} 25. Bxf8 {[%clk
0:01:38]} 25... Kxf8 {[%clk 0:00:50.6]} 26. Bxa6 {[%clk 0:01:36.2]} 26... Qxb3
{[%clk 0:00:45.3]} 27. Bb5 {[%clk 0:01:35.8]} 27... Qa3 {[%clk 0:00:39.7]} 28.
Qg5 {[%clk 0:01:33.3]} 28... Kg8 {[%clk 0:00:36.9]} 29. Be8 {[%clk 0:01:32.5]}
1-0

[Event "Late-Titled-Tuesday-Blitz-November-28-2023"]
[Site "Chess.com"]
[Date "2023.11.28"]
[Round "2"]
[White "Grischuk"]
[Black "Perecke"]
[Result "1-0"]
[WhiteElo "3080"]
[BlackElo "2494"]
[TimeControl "180+1"]
[EndTime "14:14:50 PST"]
[Termination "Grischuk won by resignation"]

1. d4 {[%clk 0:03:00.9]} 1... Nf6 {[%clk 0:02:59]} 2. c4 {[%clk 0:03:00.9]} 2...
e6 {[%clk 0:02:59.5]} 3. Bg5 {[%clk 0:03:00.7]} 3... d5 {[%clk 0:02:57.7]} 4. e3
{[%clk 0:03:00.9]} 4... h6 {[%clk 0:02:55]} 5. Bh4 {[%clk 0:03:00.6]} 5... Be7
{[%clk 0:02:47.4]} 6. Nc3 {[%clk 0:03:00.2]} 6... O-O {[%clk 0:02:46.2]} 7. Qc2
{[%clk 0:03:00.3]} 7... Nbd7 {[%clk 0:02:39.4]} 8. cxd5 {[%clk 0:03:00.1]} 8...
exd5 {[%clk 0:02:39.2]} 9. Bd3 {[%clk 0:02:56.4]} 9... c6 {[%clk 0:02:37.2]} 10.
Nf3 {[%clk 0:02:54.9]} 10... Re8 {[%clk 0:02:37.1]} 11. O-O {[%clk 0:02:53.7]}
11... Ne4 {[%clk 0:02:36.5]} 12. Bxe4 {[%clk 0:02:53.5]} 12... Bxh4 {[%clk
0:02:33.7]} 13. Bh7+ {[%clk 0:02:54.4]} 13... Kf8 {[%clk 0:02:31.1]} 14. Bd3
{[%clk 0:02:50.3]} 14... Bf6 {[%clk 0:02:28.7]} 15. b4 {[%clk 0:02:43.4]} 15...
a6 {[%clk 0:02:23.6]} 16. a4 {[%clk 0:02:35.6]} 16... Nb6 {[%clk 0:02:10.2]} 17.
a5 {[%clk 0:02:34.4]} 17... Nc4 {[%clk 0:02:04]} 18. Bxc4 {[%clk 0:02:22.9]}
18... dxc4 {[%clk 0:02:04.9]} 19. Na4 {[%clk 0:01:58]} 19... Bg4 {[%clk
0:01:56.7]} 20. Qxc4 {[%clk 0:01:48.7]} 20... Bxf3 {[%clk 0:01:46.2]} 21. gxf3
{[%clk 0:01:49.6]} 21... Qd7 {[%clk 0:01:35.4]} 22. Qc5+ {[%clk 0:01:27.2]}
22... Be7 {[%clk 0:01:32.3]} 23. Qh5 {[%clk 0:01:27.8]} 23... Rad8 {[%clk
0:01:24.2]} 24. Nc5 {[%clk 0:01:27.6]} 24... Qc7 {[%clk 0:01:15.6]} 25. Kh1
{[%clk 0:01:24]} 25... Rd5 {[%clk 0:01:15.3]} 26. Qh3 {[%clk 0:01:23.1]} 26...
g6 {[%clk 0:00:52.6]} 27. Rg1 {[%clk 0:01:15.5]} 27... Rh5 {[%clk 0:00:49.5]}
28. Nd7+ {[%clk 0:01:12.7]} 1-0